bitfinex/quotes_BTCUSD_20250124
["timestamp","ask_amount","ask_price","bid_price","bid_amount"]
[1737730386223,0.142072,105580.0,105570.0,0.142078]
[1737730386448,0.189412,105590.0,105570.0,0.142085]
[1737730386652,0.42885529,105580.0,105570.0,0.02]
[1737730387055,0.42885529,105580.0,105570.0,0.00014767]
[1737730389049,0.331508,105580.0,105570.0,0.12414767]
[1737730389247,0.18939312,105630.0,105610.0,0.02]
[1737730389496,0.25869649,105620.0,105610.0,0.02]
[1737730389690,0.23936529,105620.0,105610.0,0.02]
[1737730390092,0.23936529,105620.0,105610.0,0.162032]
[1737730390511,0.09734729,105620.0,105610.0,0.162032]
[1737730391320,0.38937629,105620.0,105600.0,0.142038]
[1737730391521,0.23936529,105620.0,105610.0,0.142032]
[1737730391838,0.09734729,105620.0,105610.0,0.162032]
[1737730392021,0.23936529,105620.0,105610.0,0.162032]
[1737730392215,0.09734729,105620.0,105610.0,0.162032]
[1737730392417,0.23936529,105620.0,105600.0,0.520799]
[1737730392639,0.09734729,105610.0,105600.0,0.142038]
[1737730393042,0.23937929,105610.0,105600.0,0.142038]
[1737730393645,0.39721569,105630.0,105600.0,0.02]
[1737730393985,0.63670895,105630.0,105610.0,0.540753]
[1737730394189,0.142018,105620.0,105610.0,0.209366]
[1737730395229,0.09734729,105620.0,105610.0,0.162032]
[1737730395436,0.09734729,105620.0,105600.0,0.331415]
[1737730395638,0.142045,105600.0,105590.0,0.209399]
[1737730395846,0.23939229,105600.0,105590.0,0.209399]
[1737730396046,0.09734729,105600.0,105590.0,0.209399]
[1737730397087,0.23939229,105600.0,105590.0,0.209399]
[1737730397373,0.09734729,105600.0,105590.0,0.209399]
[1737730397583,0.142058,105590.0,105580.0,0.209414]
[1737730397780,0.47615329,105600.0,105580.0,0.209414]
[1737730397978,0.142058,105590.0,105580.0,0.162066]
[1737730398210,0.142058,105590.0,105570.0,1.189434]
[1737730398211,0.142072,105580.0,105570.0,1.189434]
[1737730398410,0.42882929,105590.0,105570.0,1.331512]
[1737730398749,0.23941929,105580.0,105570.0,1.0]
[1737730398953,0.23941929,105580.0,105570.0,1.00014767]
[1737730399579,0.142072,105580.0,105570.0,1.14223267]
[1737730400407,0.72915974,105590.0,105570.0,1.33167367]
[1737730400612,0.59765803,105590.0,105580.0,0.142072]
[1737730400836,0.78708003,105590.0,105570.0,1.52110867]
[1737730401041,0.97650703,105590.0,105570.0,1.33167067]
[1737730401244,0.142072,105580.0,105570.0,1.00014767]
[1737730401453,0.23941929,105580.0,105570.0,1.00014767]
[1737730402498,0.38941929,105580.0,105570.0,1.00014767]
[1737730403976,0.41241929,105580.0,105570.0,1.00014767]
[1737730404261,0.42521929,105580.0,105570.0,1.00014767]
[1737730404499,0.43521929,105580.0,105570.0,0.81247601]
[1737730404709,0.42521929,105580.0,105570.0,0.51529339]
[1737730404946,0.42521929,105580.0,105570.0,0.35436979]
[1737730406496,0.40221929,105580.0,105570.0,0.35436979]
[1737730406699,0.25221929,105580.0,105570.0,0.35436979]
[1737730406901,0.23941929,105580.0,105570.0,0.35436979]
[1737730407535,0.42241929,105580.0,105570.0,0.35436979]
[1737730407746,0.49911929,105580.0,105570.0,0.35436979]
[1737730407947,0.73825728,105580.0,105570.0,0.35436979]
[1737730409422,0.72825728,105580.0,105570.0,0.35436979]
[1737730409680,0.73825728,105580.0,105570.0,0.35436979]
[1737730409893,0.79112521,105580.0,105570.0,0.35436979]
[1737730410146,2.23825728,105580.0,105570.0,0.35436979]
[1737730410370,2.23825728,105580.0,105570.0,0.35451169]
[1737730410804,2.22825728,105580.0,105570.0,0.35451169]
[1737730411014,0.72825728,105580.0,105570.0,0.35451169]
[1737730411226,0.74721391,105580.0,105570.0,0.35451169]
[1737730411659,0.8445612,105580.0,105570.0,0.35451169]
[1737730412080,0.8545612,105580.0,105570.0,0.35451169]
[1737730412288,0.75721391,105580.0,105570.0,0.35451169]
[1737730413327,0.75721391,105580.0,105570.0,0.34601345]
[1737730414874,0.77001391,105580.0,105570.0,0.34601345]
[1737730415074,0.82672391,105580.0,105570.0,0.34601345]
[1737730415298,0.77001391,105580.0,105570.0,0.34601345]
[1737730415907,0.68600259,105580.0,105570.0,0.34601345]
[1737730417229,0.83112926,105580.0,105570.0,0.23992421]
[1737730417439,0.87622926,105580.0,105570.0,0.15624634]
[1737730417842,0.88622926,105580.0,105570.0,0.15624634]
[1737730418930,0.88622926,105580.0,105570.0,1.15624634]
[1737730420113,0.88122926,105580.0,105570.0,1.15624634]
[1737730421607,0.97214926,105580.0,105570.0,1.15624634]
[1737730422179,0.95934926,105580.0,105570.0,1.15624634]
[1737730422397,0.85034926,105580.0,105570.0,1.15624634]
[1737730422916,0.85064747,105580.0,105570.0,1.15624634]
[1737730423166,0.84564747,105580.0,105570.0,1.15624634]
[1737730423423,0.83564747,105580.0,105570.0,1.15624634]
[1737730424218,0.50239413,105580.0,105570.0,1.15624634]
[1737730424489,0.1885655,105580.0,105570.0,1.15624634]
[1737730424700,0.00029821,105580.0,105570.0,1.31833134]
[1737730424918,0.00029821,105580.0,105570.0,2.35389875]
[1737730425173,0.00029821,105580.0,105570.0,2.25655146]
[1737730425373,0.00029821,105580.0,105570.0,1.44713134]
[1737730426037,0.00029821,105580.0,105570.0,2.50389875]
[1737730426319,0.142026,105620.0,105610.0,0.142032]
[1737730426528,0.142026,105620.0,105600.0,0.617892]
[1737730426529,0.42872629,105620.0,105600.0,0.617892]
[1737730426737,0.42872629,105620.0,105600.0,0.428508]
[1737730426942,0.42872629,105620.0,105600.0,0.239145]
[1737730426943,0.09734729,105610.0,105600.0,0.239145]
[1737730427361,0.23937929,105610.0,105600.0,0.239145]
[1737730427987,0.09734729,105610.0,105600.0,0.239145]
[1737730428193,0.142024,105620.0,105610.0,0.142032]
[1737730428412,0.42873229,105620.0,105610.0,0.142032]
[1737730428675,0.61809329,105620.0,105600.0,0.428525]
[1737730429083,0.61809329,105620.0,105600.0,0.617909]
[1737730430050,0.42873229,105620.0,105600.0,0.617909]
[1737730430312,0.61809929,105620.0,105600.0,0.617909]
[1737730430496,0.42873229,105620.0,105600.0,0.617909]
[1737730431134,0.23936529,105620.0,105610.0,0.162032]
[1737730431770,0.23936529,105620.0,105610.0,0.02]
[1737730431907,0.23936529,105620.0,105610.0,0.162032]
[1737730432718,0.52076212,105630.0,105610.0,0.142032]
[1737730432954,0.61810541,105630.0,105610.0,0.540774]
[1737730433153,0.01758459,105620.0,105610.0,0.351399]
[1737730433594,0.01758459,105620.0,105610.0,0.162032]
[1737730433802,0.44630788,105620.0,105610.0,0.02]
[1737730433949,0.44630788,105620.0,105610.0,0.162032]
[1737730434295,0.44630788,105620.0,105600.0,0.454926]
[1737730434296,0.63567388,105620.0,105600.0,0.454926]
[1737730434498,0.44630788,105620.0,105600.0,0.644311]
[1737730434715,0.44630788,105620.0,105610.0,0.02]
[1737730434934,0.42872329,105620.0,105610.0,0.162032]
[1737730435157,0.4290215,105620.0,105610.0,0.162032]
[1737730435359,0.2870035,105620.0,105600.0,0.454926]
[1737730435562,0.6183995,105620.0,105610.0,0.02]
[1737730435765,0.4290325,105620.0,105600.0,0.45493]
[1737730435989,0.4290325,105620.0,105610.0,0.02]
[1737730436198,0.2396745,105620.0,105610.0,0.162032]
[1737730436610,0.2396745,105620.0,105610.0,0.02]
[1737730436808,0.4290375,105620.0,105610.0,0.02]
[1737730437016,0.2396745,105620.0,105610.0,0.02]
[1737730437231,0.2396745,105620.0,105610.0,0.162032]
[1737730437642,0.4290405,105620.0,105600.0,0.644312]
[1737730437842,0.0976455,105620.0,105610.0,0.162032]
[1737730438052,0.00029821,105620.0,105610.0,0.162032]
[1737730438286,0.00029821,105620.0,105610.0,0.16297882]
[1737730438739,0.00029821,105620.0,105610.0,0.162032]
[1737730438941,0.0976455,105620.0,105610.0,0.142032]
[1737730439552,0.2396635,105620.0,105610.0,0.162032]
[1737730439780,0.2396635,105620.0,105610.0,0.142032]
[1737730439982,0.4290445,105620.0,105600.0,0.1235]
[1737730440198,0.23937929,105610.0,105600.0,0.0464]
[1737730440402,0.47611829,105610.0,105590.0,0.35145]
[1737730440605,0.42877429,105610.0,105600.0,0.02]
[1737730440835,0.52106821,105620.0,105600.0,0.35237686]
[1737730441071,0.142032,105610.0,105600.0,0.162045]
[1737730441277,0.42875929,105610.0,105590.0,0.33145]
[1737730441450,0.42875929,105610.0,105600.0,0.162045]
[1737730441680,0.09734729,105610.0,105600.0,0.162045]
[1737730441884,0.09734729,105610.0,105600.0,0.142045]
[1737730442086,0.42876329,105610.0,105590.0,0.33145]
[1737730442296,0.142054,105600.0,105590.0,0.02]
[1737730442501,0.142058,105590.0,105580.0,0.315327]
[1737730442721,0.23940529,105590.0,105580.0,0.00014767]
[1737730442928,0.23940529,105590.0,105580.0,0.16221967]
[1737730443133,0.142052,105600.0,105580.0,0.16221967]
[1737730443339,0.670813,105610.0,105590.0,0.162058]
[1737730443591,0.142045,105600.0,105590.0,0.162058]
[1737730443803,0.23939229,105600.0,105590.0,0.142058]
[1737730444009,0.23939229,105600.0,105580.0,0.14221967]
[1737730444010,0.142058,105590.0,105580.0,0.14221967]
[1737730444214,0.23940529,105590.0,105580.0,0.14221967]
[1737730444420,0.23940529,105590.0,105580.0,0.00014767]
[1737730445045,0.331451,105600.0,105580.0,0.35162967]
[1737730445271,0.42879829,105600.0,105580.0,0.54104767]
[1737730445477,0.61820129,105600.0,105580.0,0.54104767]
[1737730445679,0.189389,105610.0,105580.0,0.54104767]
[1737730445680,0.520815,105610.0,105590.0,0.331469]
[1737730445855,0.42877329,105610.0,105590.0,0.33146]
[1737730446090,0.142045,105600.0,105590.0,0.142058]
[1737730446907,0.23938929,105610.0,105590.0,0.540875]
[1737730447112,0.23938929,105610.0,105600.0,0.142045]
[1737730447353,0.23938929,105610.0,105600.0,0.162045]
[1737730447579,0.53153279,105620.0,105600.0,0.162045]
[1737730447785,0.23937929,105610.0,105590.0,0.520866]
[1737730447974,0.23937929,105610.0,105580.0,0.18971767]
[1737730447975,0.23939229,105600.0,105580.0,0.39912967]
[1737730448146,0.42880229,105600.0,105580.0,0.33177167]
[1737730448347,0.142058,105590.0,105580.0,0.14235367]
[1737730448577,0.142058,105590.0,105580.0,0.14235867]
[1737730448785,0.142058,105590.0,105580.0,0.16235867]
[1737730449159,0.520852,105600.0,105580.0,0.54120467]
[1737730449366,0.61819929,105600.0,105580.0,0.52119667]
[1737730449705,0.142058,105590.0,105580.0,0.02028967]
[1737730450130,0.23940529,105590.0,105580.0,0.00028967]
[1737730450335,0.23940529,105590.0,105580.0,0.16236167]
[1737730450674,0.339383,105610.0,105590.0,0.331456]
[1737730450969,0.339383,105610.0,105590.0,0.351456]
[1737730450970,0.09734729,105600.0,105590.0,0.351456]
[1737730452566,0.55008397,105620.0,105600.0,0.520816]
[1737730452821,0.81823408,105620.0,105600.0,0.520816]
[1737730453025,0.62886408,105620.0,105600.0,0.520816]
[1737730453308,0.62886408,105620.0,105600.0,0.520808]
[1737730453631,0.142032,105610.0,105600.0,0.209385]
[1737730453843,0.142032,105610.0,105590.0,0.380349]
[1737730453844,0.28672929,105610.0,105590.0,0.380349]
[1737730454098,0.28672929,105610.0,105590.0,0.258299]
[1737730454099,0.142045,105600.0,105590.0,0.258299]
[1737730454341,0.66410532,105610.0,105590.0,0.589752]
[1737730454558,0.47471532,105610.0,105590.0,0.779147]
[1737730454767,0.04594903,105610.0,105600.0,0.142045]
[1737730454976,0.18798103,105610.0,105600.0,0.02]
[1737730455190,0.18798103,105610.0,105600.0,0.162045]
[1737730455392,0.142032,105610.0,105600.0,0.162045]
[1737730456638,0.23937929,105610.0,105600.0,0.02]
[1737730456843,0.42876329,105610.0,105600.0,0.02]
[1737730457022,0.42876329,105610.0,105600.0,0.162045]
[1737730457229,0.42876329,105610.0,105600.0,0.142045]
[1737730457377,0.42876329,105610.0,105590.0,0.589749]
[1737730457771,0.142045,105600.0,105590.0,0.258299]
[1737730457944,0.142045,105600.0,105590.0,0.0489]
[1737730458100,0.142058,105590.0,105580.0,0.02028967]
[1737730458302,0.23940529,105590.0,105580.0,0.16236167]
[1737730458507,0.23940529,105590.0,105580.0,0.00028967]
[1737730458910,0.23940529,105590.0,105580.0,0.16236167]
[1737730460133,0.568224,105600.0,105590.0,0.142058]
[1737730460134,0.331459,105600.0,105590.0,0.142058]
[1737730460336,0.378766,105610.0,105590.0,0.142058]
[1737730460562,0.142045,105600.0,105590.0,0.162058]
[1737730464005,0.61815529,105610.0,105590.0,0.540872]
[1737730464210,0.61815429,105610.0,105590.0,0.540865]
[1737730464383,0.61815429,105610.0,105590.0,0.162058]
[1737730464572,0.15974311,105600.0,105590.0,0.162058]
[1737730465684,0.142045,105600.0,105590.0,0.162058]
[1737730466091,0.142045,105600.0,105590.0,0.02]
[1737730466620,0.142045,105600.0,105590.0,0.162058]
[1737730466823,0.142045,105600.0,105590.0,0.02]
[1737730467015,0.142045,105600.0,105590.0,0.162058]
[1737730467157,0.142045,105600.0,105590.0,0.02]
[1737730467369,0.23939229,105600.0,105590.0,0.02]
[1737730468633,0.42878829,105600.0,105590.0,0.02]
[1737730469523,0.43935417,105600.0,105590.0,0.02]
[1737730469745,0.142058,105590.0,105580.0,0.00028967]
[1737730469915,0.23940529,105590.0,105580.0,0.00028967]
[1737730470127,0.23940529,105590.0,105580.0,0.02028967]
[1737730470330,0.23940529,105590.0,105580.0,0.00028967]
[1737730471120,0.23940529,105590.0,105580.0,0.02028967]
[1737730471899,0.23940529,105590.0,105580.0,0.16236167]
[1737730472100,0.18968321,105610.0,105590.0,0.209404]
[1737730472307,0.142045,105600.0,105590.0,0.162054]
[1737730472506,0.142045,105600.0,105590.0,0.02]
[1737730473471,0.52084,105600.0,105580.0,0.35272963]
[1737730473671,0.142058,105590.0,105580.0,0.16236167]
[1737730473904,0.23940529,105590.0,105580.0,0.00028967]
[1737730475608,0.50975258,105590.0,105580.0,0.00028967]
[1737730475807,0.42240529,105590.0,105580.0,0.00028967]
[1737730476052,0.175072,105580.0,105570.0,1.15609867]
[1737730476284,0.36697929,105580.0,105570.0,1.15609867]
[1737730476878,0.55597929,105580.0,105570.0,1.11453547]
[1737730477078,0.58972436,105580.0,105570.0,1.11453547]
[1737730477718,0.55597929,105580.0,105570.0,1.11453547]
[1737730477867,0.55321929,105580.0,105570.0,1.11453547]
[1737730478069,0.55597929,105580.0,105570.0,1.11453547]
[1737730478277,0.42517929,105580.0,105570.0,1.11453547]
[1737730480830,0.43583098,105580.0,105570.0,1.11453547]
[1737730481634,0.25007098,105580.0,105570.0,1.11453547]
[1737730481991,0.23970831,105580.0,105570.0,1.11453547]
[1737730482191,0.00028902,105580.0,105570.0,1.27662047]
[1737730482624,0.14236102,105580.0,105570.0,1.13453547]
[1737730483408,0.23970831,105580.0,105570.0,1.13453547]
[1737730483856,0.23970831,105580.0,105570.0,1.27662047]
[1737730485094,0.23970831,105580.0,105570.0,1.13453547]
[1737730486477,0.23970831,105580.0,105570.0,1.27662047]
[1737730486687,0.23970831,105580.0,105570.0,1.13453547]
[1737730489074,0.23970831,105580.0,105570.0,1.11453547]
[1737730489363,0.23970831,105580.0,105570.0,1.13453547]
[1737730489605,0.23970831,105580.0,105570.0,1.11453547]
[1737730490842,0.23970831,105580.0,105570.0,1.27662047]
[1737730491356,0.14236102,105580.0,105570.0,1.27662047]
[1737730492357,0.00028902,105580.0,105570.0,1.27662047]
[1737730494151,0.14236102,105580.0,105570.0,1.27662047]
[1737730494398,0.00028902,105580.0,105570.0,1.27662047]
[1737730494905,0.23970831,105580.0,105570.0,1.13453547]
[1737730495153,0.23970831,105580.0,105570.0,1.27662047]
[1737730495702,0.00058723,105580.0,105570.0,1.39832047]
[1737730495950,0.00029821,105590.0,105580.0,0.283772]
[1737730496221,0.00029821,105590.0,105580.0,1.80548274]
[1737730496525,0.00029821,105590.0,105580.0,1.09319212]
[1737730496728,0.00029821,105590.0,105580.0,0.263772]
[1737730496967,0.00029821,105590.0,105580.0,0.142072]
[1737730497186,0.00029821,105590.0,105580.0,0.14301898]
[1737730498463,0.00043816,105590.0,105580.0,0.16301898]
[1737730499328,0.00043816,105590.0,105580.0,0.29141898]
[1737730499554,0.00043816,105590.0,105580.0,0.290472]
[1737730500988,0.14249616,105590.0,105580.0,0.142072]
[1737730501181,0.00043816,105590.0,105580.0,0.162072]
[1737730501436,0.00043816,105590.0,105580.0,0.16301902]
[1737730506412,0.00043816,105590.0,105580.0,0.33686631]
[1737730506627,0.00043816,105590.0,105580.0,0.33591929]
[1737730507068,0.00043816,105590.0,105580.0,0.33606129]
[1737730509880,0.331397,105620.0,105610.0,0.142032]
[1737730510102,0.42874429,105620.0,105610.0,0.142032]
[1737730510360,0.53097241,105630.0,105610.0,0.162032]
[1737730510613,0.62845472,105630.0,105610.0,0.35234479]
[1737730510856,0.62845472,105630.0,105610.0,0.540766]
[1737730511347,0.43910572,105630.0,105620.0,0.142018]
[1737730511594,0.00018314,105630.0,105620.0,0.162018]
[1737730512274,0.00018314,105630.0,105620.0,0.1629647]
[1737730513133,0.00018314,105630.0,105620.0,0.162018]
[1737730513340,0.00018314,105630.0,105620.0,0.16296461]
[1737730513922,0.00018314,105630.0,105620.0,0.162018]
[1737730514559,0.00018314,105630.0,105620.0,0.16296461]
[1737730515332,0.00018314,105630.0,105620.0,0.142018]
[1737730515536,0.00018314,105630.0,105620.0,0.1629646]
[1737730518631,0.08319821,105690.0,105680.0,0.141937]
[1737730518856,0.0976455,105690.0,105680.0,0.141937]
[1737730519063,0.14271512,105690.0,105680.0,0.141937]
[1737730519270,0.14271512,105690.0,105670.0,0.398506]
[1737730519473,0.24006241,105690.0,105680.0,0.141937]
[1737730519745,0.00079112,105690.0,105680.0,0.16288317]
[1737730520378,0.00079112,105690.0,105680.0,0.26023046]
[1737730520584,0.00079112,105690.0,105680.0,1.14440441]
[1737730520799,0.00079112,105690.0,105680.0,1.24666226]
[1737730521232,0.00079112,105690.0,105680.0,1.39666226]
[1737730521444,0.00079112,105690.0,105680.0,1.42966226]
[1737730522280,0.00029904,105700.0,105690.0,0.37947386]
[1737730522477,0.00044682,105700.0,105690.0,0.95782893]
[1737730523427,0.00044682,105700.0,105690.0,0.90885974]
[1737730523663,0.00044682,105700.0,105690.0,0.93482893]
[1737730524044,0.00044682,105700.0,105690.0,0.95782893]
[1737730524433,8.2e-07,105700.0,105690.0,1.22782893]
[1737730524655,8.2e-07,105700.0,105690.0,1.08782893]
[1737730524870,8.2e-07,105700.0,105690.0,1.12782893]
[1737730525230,8.2e-07,105700.0,105690.0,1.08782893]
[1737730525434,0.32714224,105760.0,105740.0,0.330989]
[1737730525645,0.61375725,105760.0,105740.0,0.330988]
[1737730525858,0.00014772,105760.0,105750.0,0.14278855]
[1737730527341,0.00014772,105760.0,105750.0,0.95220867]
[1737730527540,0.00014772,105760.0,105750.0,1.39656527]
[1737730527737,0.00014772,105760.0,105750.0,1.41656527]
[1737730527943,0.00014772,105760.0,105750.0,1.38391041]
[1737730528195,0.00014772,105760.0,105750.0,1.33091041]
[1737730528517,0.00014772,105760.0,105750.0,1.24831041]
[1737730528721,0.00014772,105760.0,105750.0,0.161843]
[1737730528930,0.00014772,105760.0,105750.0,0.02094547]
[1737730529127,0.00014772,105760.0,105750.0,0.16278847]
[1737730529326,0.14197772,105760.0,105750.0,0.14278847]
[1737730529529,0.141843,105750.0,105730.0,1.29042912]
[1737730529780,0.23921329,105740.0,105710.0,1.08120512]
[1737730529986,1.92836629,105740.0,105730.0,0.02]
[1737730530208,0.596522,105750.0,105730.0,0.14187]
[1737730530461,0.330982,105750.0,105730.0,0.540187]
[1737730530665,1.83109872,105760.0,105740.0,0.141855]
[1737730530872,1.83109872,105760.0,105730.0,0.161869]
[1737730530873,0.23919829,105750.0,105730.0,0.161869]
[1737730531084,1.92844301,105760.0,105740.0,0.33194371]
[1737730531305,0.42844301,105760.0,105740.0,0.520131]
[1737730531527,0.61756201,105760.0,105740.0,0.33099]
[1737730531741,0.520156,105740.0,105720.0,0.331047]
[1737730531966,0.14188,105730.0,105710.0,0.141892]
[1737730532189,0.09734729,105740.0,105730.0,0.02]
[1737730532190,0.50427029,105740.0,105730.0,0.02]
[1737730532579,0.141869,105740.0,105730.0,0.02]
[1737730532752,0.141857,105740.0,105730.0,0.02]
[1737730532964,0.330986,105750.0,105740.0,0.141857]
[1737730533127,0.41370372,105760.0,105740.0,0.330999]
[1737730533330,0.14227572,105760.0,105750.0,0.00094568]
[1737730533577,0.09779301,105760.0,105730.0,0.351017]
[1737730533776,0.09734729,105750.0,105730.0,0.16187]
[1737730533937,0.61746029,105750.0,105730.0,0.35197266]
[1737730534132,0.189143,105740.0,105720.0,0.33104]
[1737730534333,0.331011,105740.0,105720.0,0.33104]
[1737730534644,0.331031,105730.0,105710.0,0.520263]
[1737730534875,0.331031,105730.0,105710.0,0.52026]
[1737730535077,0.141884,105720.0,105710.0,0.141897]
[1737730535399,0.520211,105730.0,105710.0,0.33203585]
[1737730535597,0.141884,105720.0,105710.0,0.141897]
[1737730535756,0.520211,105730.0,105710.0,0.141897]
[1737730535986,0.14187,105730.0,105720.0,0.209163]
[1737730536183,0.331042,105730.0,105710.0,0.520252]
[1737730536385,0.33109122,105730.0,105710.0,0.520253]
[1737730536591,0.33109122,105730.0,105700.0,0.189201]
[1737730536592,0.28653729,105720.0,105690.0,0.331144]
[1737730536803,0.28653729,105720.0,105700.0,0.16191]
[1737730536804,0.61761829,105720.0,105700.0,0.16191]
[1737730537002,0.61761829,105720.0,105700.0,0.351122]
[1737730537225,0.52026822,105730.0,105710.0,0.331087]
[1737730537434,0.80678751,105730.0,105710.0,0.520283]
[1737730537638,0.141884,105720.0,105710.0,0.141897]
[1737730537839,0.331069,105720.0,105710.0,0.141897]
[1737730538041,0.520257,105720.0,105700.0,0.520314]
[1737730538284,0.520257,105720.0,105700.0,0.540314]
[1737730538499,0.42842529,105720.0,105700.0,0.351116]
[1737730538701,0.141897,105710.0,105700.0,0.14191]
[1737730538896,0.29604729,105710.0,105670.0,0.02]
[1737730539099,0.24734729,105700.0,105690.0,1.781549]
[1737730539300,0.41225829,105700.0,105690.0,1.781549]
[1737730539522,0.60148629,105700.0,105690.0,1.781549]
[1737730539750,0.68769372,105700.0,105690.0,1.781549]
[1737730539996,0.60148629,105700.0,105690.0,1.781549]
[1737730540842,0.60148629,105700.0,105690.0,1.703449]
[1737730541053,0.65038629,105700.0,105690.0,0.839049]
[1737730541288,0.66038629,105700.0,105690.0,0.839049]
[1737730541498,2.25981368,105700.0,105690.0,0.839049]
[1737730541709,2.17306629,105700.0,105690.0,0.839049]
[1737730541915,2.16306629,105700.0,105690.0,0.839049]
[1737730542398,0.66028462,105700.0,105690.0,0.60275027]
[1737730542607,0.70928462,105700.0,105690.0,0.35819469]
[1737730542817,0.72161385,105700.0,105690.0,0.35819469]
[1737730543035,0.75035193,105700.0,105690.0,0.35819469]
[1737730543427,0.74325193,105700.0,105690.0,0.35819469]
[1737730544294,0.74325193,105700.0,105690.0,0.35833639]
[1737730545393,0.53148656,105700.0,105690.0,0.35833639]
[1737730545849,0.421939,105700.0,105690.0,0.50026039]
[1737730546062,0.331115,105710.0,105690.0,0.81748339]
[1737730546297,0.331078,105720.0,105700.0,0.332062]
[1737730546540,0.0129532,105730.0,105700.0,0.520308]
[1737730546541,0.2021242,105730.0,105700.0,0.520308]
[1737730546754,0.141894,105720.0,105710.0,0.161897]
[1737730546966,0.33109022,105730.0,105710.0,0.35109]
[1737730547180,0.141884,105720.0,105710.0,0.161897]
[1737730547396,0.61760851,105730.0,105710.0,0.351084]
[1737730547584,4.922e-05,105730.0,105720.0,0.141884]
[1737730547849,0.14191922,105730.0,105720.0,0.141884]
[1737730548071,0.33108322,105730.0,105710.0,0.540269]
[1737730548279,0.33108322,105730.0,105720.0,0.141884]
[1737730548495,0.52025222,105730.0,105710.0,0.540277]
[1737730548711,0.331064,105720.0,105700.0,0.331102]
[1737730548996,0.331064,105720.0,105700.0,0.189202]
[1737730548997,0.141897,105710.0,105700.0,0.189202]
[1737730549216,0.709455,105720.0,105700.0,0.331107]
[1737730549423,0.141897,105710.0,105700.0,0.141905]
[1737730549652,0.14191,105710.0,105690.0,0.62824939]
[1737730549863,0.331118,105710.0,105700.0,0.141911]
[1737730550073,0.331118,105710.0,105700.0,0.161911]
[1737730550291,0.189183,105720.0,105690.0,1.00669339]
[1737730550499,0.01254763,105750.0,105730.0,0.0478]
[1737730550727,0.101058,105760.0,105750.0,0.141843]
[1737730550954,0.431998,105760.0,105740.0,0.520122]
[1737730551186,0.621117,105760.0,105740.0,0.520122]
[1737730551365,0.431998,105760.0,105740.0,0.709255]
[1737730551610,0.431998,105760.0,105740.0,0.330988]
[1737730551826,0.431998,105760.0,105740.0,0.52013]
[1737730552446,0.431998,105760.0,105740.0,0.52012]
[1737730552639,0.621117,105760.0,105740.0,0.330988]
[1737730553027,0.19840529,105760.0,105750.0,0.141843]
[1737730553417,0.34023529,105760.0,105750.0,0.141843]
[1737730553794,0.52934729,105760.0,105740.0,0.350988]
[1737730553997,0.47561529,105750.0,105730.0,0.0478]
[1737730554221,0.141857,105740.0,105730.0,0.0478]
[1737730554881,0.09734729,105740.0,105720.0,0.0775]
[1737730555083,0.38921729,105730.0,105720.0,0.0775]
[1737730555331,0.141884,105720.0,105710.0,0.0497]
[1737730555532,0.141884,105720.0,105710.0,0.04974922]
[1737730555742,0.141884,105720.0,105710.0,0.19164622]
[1737730556195,0.76756729,105730.0,105710.0,0.38083922]
[1737730556387,0.141884,105720.0,105710.0,0.04974922]
[1737730556613,0.141884,105720.0,105710.0,0.19164622]
[1737730557012,0.76756129,105730.0,105710.0,0.38084122]
[1737730557217,0.141884,105720.0,105710.0,0.19164622]
[1737730558570,0.01561817,105740.0,105720.0,0.141884]
[1737730558571,0.520173,105740.0,105720.0,0.141884]
[1737730558774,0.141867,105740.0,105730.0,0.14187]
[1737730558986,0.291867,105740.0,105720.0,0.331051]
[1737730559198,0.331033,105730.0,105710.0,0.59000422]
[1737730559389,0.670161,105740.0,105720.0,0.331062]
[1737730559601,0.33128879,105750.0,105730.0,0.14187]
[1737730559771,0.141857,105740.0,105730.0,0.14187]
[1737730560146,0.00029779,105750.0,105740.0,0.141857]
[1737730560707,0.00029779,105750.0,105740.0,0.187357]
[1737730560912,0.00029779,105750.0,105740.0,0.357357]
[1737730561069,0.00029779,105750.0,105740.0,0.207357]
[1737730561709,0.14214079,105750.0,105740.0,0.0455]
[1737730561896,0.14214079,105750.0,105740.0,0.207357]
[1737730562096,0.00029779,105750.0,105740.0,0.207357]
[1737730562301,0.14214079,105750.0,105740.0,0.0655]
[1737730562763,0.00029779,105750.0,105740.0,0.35830264]
[1737730562944,0.00029779,105750.0,105740.0,1.34462441]
[1737730563403,0.00029779,105750.0,105740.0,0.417857]
[1737730563614,0.00029779,105750.0,105740.0,0.437857]
[1737730564286,0.00029779,105750.0,105740.0,0.53520429]
[1737730564500,0.00029779,105750.0,105740.0,1.34462441]
[1737730564905,0.00029779,105750.0,105740.0,1.82563219]
[1737730565110,0.010258,105760.0,105750.0,0.273]
[1737730565346,0.010258,105760.0,105750.0,0.51219029]
[1737730565761,0.010258,105760.0,105750.0,0.53219029]
[1737730567638,0.010258,105760.0,105750.0,0.414843]
[1737730567869,0.010258,105760.0,105750.0,0.284843]
[1737730569379,0.010258,105760.0,105750.0,0.38219029]
[1737730569591,0.010258,105760.0,105750.0,0.284843]
[1737730571505,0.010258,105760.0,105750.0,0.38219029]
[1737730571986,0.010258,105760.0,105750.0,0.53219029]
[1737730572200,0.00166912,105760.0,105750.0,0.53219029]
[1737730572412,0.000298,105800.0,105790.0,0.28799]
[1737730572663,0.000298,105800.0,105790.0,0.38533729]
[1737730572664,0.00079049,105800.0,105790.0,0.38533729]
[1737730573099,0.00079049,105800.0,105790.0,0.36533729]
[1737730573316,0.00079049,105800.0,105790.0,0.38533729]
[1737730573738,0.00079049,105800.0,105790.0,0.36533729]
[1737730573950,0.00079049,105800.0,105790.0,0.38533729]
[1737730575029,0.00079049,105800.0,105790.0,0.26799]
[1737730575231,0.14256649,105800.0,105790.0,0.1262]
[1737730575862,0.09813778,105800.0,105770.0,0.336871]
[1737730576071,0.09813778,105800.0,105780.0,0.02]
[1737730576072,0.330853,105790.0,105780.0,0.02]
[1737730576281,0.330853,105790.0,105770.0,0.647762]
[1737730576496,0.141803,105780.0,105770.0,0.1278]
[1737730576704,0.141803,105780.0,105760.0,0.02]
[1737730576705,0.141817,105770.0,105760.0,0.02]
[1737730577113,0.42824329,105780.0,105760.0,0.161827]
[1737730577321,0.29257249,105800.0,105770.0,0.02]
[1737730577530,0.57895578,105800.0,105780.0,0.330851]
[1737730577736,0.76800178,105800.0,105780.0,0.330851]
[1737730577939,0.14179,105790.0,105780.0,0.141803]